bitfinex/quotes_ETHUSD_20251201
["timestamp","ask_amount","ask_price","bid_price","bid_amount"]
[1764548467430,0.32882448,2901.8,2898.9,0.52873574]
[1764548467431,0.32882448,2901.8,2900.4,0.1895]
[1764548467631,0.32882448,2901.8,2899.4,4.08847965]
[1764548467632,0.32882448,2901.8,2900.0,0.461]
[1764548468070,0.32882448,2902.1,2900.3,0.72559411]
[1764548468232,0.32882448,2902.1,2900.3,0.405504]
[1764548468435,0.256,2902.2,2900.4,0.461]
[1764548468838,0.32882448,2902.4,2900.4,0.461]
[1764548469171,0.256,2902.3,2900.4,0.461]
[1764548469734,0.256,2902.2,2900.4,0.461]
[1764548469935,0.32882448,2901.3,2900.4,0.461]
[1764548470131,0.32882448,2901.3,2899.6,0.461]
[1764548470391,0.256,2901.2,2899.9,0.461]
[1764548470590,0.32882448,2902.0,2899.9,3.90939477]
[1764548470735,0.32882448,2902.0,2900.0,0.72559411]
[1764548470736,0.256,2901.3,2900.0,0.72559411]
[1764548470934,0.256,2901.3,2899.0,3.85488929]
[1764548470935,0.32882448,2900.9,2899.3,0.6505]
[1764548471158,0.98159411,2901.3,2898.5,0.461]
[1764548471159,0.32882448,2899.7,2898.5,0.461]
[1764548471360,0.256,2899.6,2898.5,0.461]
[1764548471555,0.256,2899.6,2898.6,0.461]
[1764548471761,0.256,2899.6,2898.0,0.461]
[1764548472042,6.89797888,2899.4,2898.9,0.18011059]
[1764548472260,1.440992,2899.3,2898.0,0.461]
[1764548472588,0.32882448,2898.9,2897.6,1.70609504]
[1764548473260,0.405504,2897.7,2897.6,1.70609504]
[1764548473469,0.256,2897.9,2897.6,1.70609504]
[1764548473629,0.71539789,2899.3,2897.6,1.70609504]
[1764548473630,0.256,2898.2,2897.6,1.70609504]
[1764548473833,0.405504,2898.8,2897.6,1.70609504]
[1764548473834,0.32882448,2897.7,2897.6,1.70609504]
[1764548474074,0.256,2898.1,2897.6,1.70609504]
[1764548474365,0.32882448,2898.4,2897.6,1.70609504]
[1764548474582,1.68914302,2901.1,2897.6,1.70609504]
[1764548474583,0.00080001,2898.3,2897.7,0.461]
[1764548474767,0.00080001,2898.3,2897.6,5.15722645]
[1764548474768,0.00080001,2898.3,2893.4,1.92361823]
[1764548474951,30.0,2894.1,2889.0,7.020157]
[1764548475150,0.72559411,2893.3,2889.2,6.431059]
[1764548475347,3.93387888,2894.0,2889.2,2.120248]
[1764548475348,4.08847965,2892.9,2889.2,2.120248]
[1764548475536,2.19101854,2894.3,2889.4,5.206547]
[1764548475537,0.32882448,2892.4,2889.4,5.206547]
[1764548475874,0.32882448,2892.4,2888.7,14.03653871]
[1764548475875,4.08847965,2891.9,2888.7,0.1895]
[1764548476166,0.32882448,2891.2,2888.9,4.08847965]
[1764548476375,0.32882448,2891.2,2888.7,3.65125048]
[1764548476376,0.00080001,2891.1,2888.7,3.65125048]
[1764548476533,0.00080001,2891.1,2889.0,10.707319]
[1764548476740,0.00080001,2891.1,2888.7,0.1895]
[1764548476947,0.00080001,2891.1,2888.8,7.04427565]
[1764548477283,0.00080001,2891.1,2888.0,0.21278159]
[1764548477284,4.08847965,2890.8,2888.0,0.02328159]
[1764548477486,0.32882448,2890.2,2888.7,4.08847965]
[1764548477687,0.32882448,2890.2,2888.1,2.424425]
[1764548477688,0.00080001,2890.1,2888.1,0.461]
[1764548477889,0.00080001,2890.1,2888.2,0.461]
[1764548478104,0.00080001,2890.1,2887.3,0.1895]
[1764548478105,0.00080001,2890.1,2887.5,0.38473837]
[1764548478381,0.00080001,2890.1,2887.4,3.675615]
[1764548478554,0.05,2892.2,2887.4,3.675615]
[1764548478758,0.1849,2892.8,2890.0,0.0792]
[1764548478956,0.32882448,2892.7,2890.0,0.0792]
[1764548479168,0.32882448,2893.0,2890.1,8.803395]
[1764548479372,0.81382448,2893.0,2890.2,0.8882595]
[1764548479571,0.81382448,2893.0,2890.0,0.0792]
[1764548479572,0.32882448,2892.8,2890.0,0.0792]
[1764548479747,0.48208959,2894.1,2890.8,0.72559411]
[1764548479946,2.51984302,2894.3,2891.0,0.72559411]
[1764548480147,4.99565759,2893.6,2890.4,0.461]
[1764548480392,0.32882448,2892.4,2890.4,0.461]
[1764548480749,0.485,2892.3,2889.6,0.461]
[1764548480947,0.485,2892.3,2889.7,0.461]
[1764548481155,0.72559411,2892.0,2888.5,6.924009]
[1764548481465,0.485,2893.1,2890.1,2.645667]
[1764548481665,0.32882448,2892.9,2890.2,0.76413246]
[1764548481861,4.99565759,2894.0,2890.2,0.76413246]
[1764548481862,0.32882448,2893.2,2891.3,2.27405]
[1764548482105,0.32882448,2893.5,2891.4,7.37804293]
[1764548482305,0.485,2895.2,2892.0,2.86675]
[1764548482531,0.32882448,2894.9,2892.5,0.72559411]
[1764548482703,0.32882448,2894.9,2891.5,0.461]
[1764548482704,5.32448207,2894.8,2892.0,0.4997]
[1764548483038,0.32882448,2894.6,2891.6,0.72559411]
[1764548483238,0.272,2894.5,2891.1,0.4997]
[1764548483447,0.272,2894.5,2890.4,0.4997]
[1764548483448,0.32882448,2893.0,2890.4,0.4997]
[1764548483649,8.454006,2892.8,2889.6,0.4997]
[1764548483854,1.09759411,2892.9,2889.4,0.0346]
[1764548483855,0.32882448,2891.3,2889.4,0.0346]
[1764548484144,0.32882448,2889.7,2889.4,0.0346]
[1764548484304,0.1807,2889.5,2887.0,0.4945]
[1764548484506,0.1807,2889.5,2886.6,1.80423554]
[1764548484507,0.32882448,2888.0,2886.6,1.80423554]
[1764548484710,0.32882448,2889.4,2886.9,4.99565759]
[1764548484910,0.272,2890.7,2887.9,4.99565759]
[1764548485118,0.32882448,2890.8,2888.5,4.99565759]
[1764548485333,0.1807,2892.0,2889.2,2.206327]
[1764548485635,0.2307,2894.4,2889.2,0.72559411]
[1764548485636,0.32882448,2891.8,2889.2,0.72559411]
[1764548485802,0.72559411,2891.0,2888.1,0.4945]
[1764548486007,0.1807,2892.4,2887.3,0.4945]
[1764548486008,0.018,2889.2,2887.3,0.4945]
[1764548486210,0.018,2889.2,2887.7,2.448496]
[1764548486521,0.018,2889.2,2888.3,0.72559411]
[1764548486850,3.47916572,2889.2,2886.9,0.4945]
[1764548487063,0.32882448,2888.8,2886.9,0.4945]
[1764548487403,0.018,2889.2,2886.9,0.4945]
[1764548487916,0.4571,2889.1,2886.9,0.4945]
[1764548488272,10.40160824,2889.2,2886.9,0.4945]
[1764548488273,0.018,2889.2,2887.0,3.15223]
[1764548488566,0.018,2889.2,2886.9,7.42234646]
[1764548488567,0.018,2889.2,2887.6,8.670757]
[1764548488838,0.018,2889.2,2888.3,2.298371]
[1764548489005,0.018,2889.2,2887.8,4.99565759]
[1764548489006,0.4571,2891.6,2889.1,0.72559411]
[1764548489204,0.4571,2891.6,2888.4,0.72559411]
[1764548489205,0.32882448,2891.5,2889.4,0.72559411]
[1764548489405,0.32882448,2892.4,2890.0,0.405504]
[1764548489713,4.99565759,2893.6,2890.4,2.085691]
[1764548489714,0.32882448,2892.9,2890.4,2.085691]
[1764548490024,0.32882448,2892.9,2890.4,0.72559411]
[1764548490228,0.78455173,2893.5,2891.0,0.72559411]
[1764548490229,0.32882448,2893.3,2891.0,0.72559411]
[1764548490525,0.32882448,2893.3,2890.8,0.99859411]
[1764548490845,0.32882448,2893.3,2890.8,1.49309411]
[1764548491135,2.8498597,2893.7,2890.8,1.49309411]
[1764548491136,2.8498597,2893.7,2892.0,1.13109811]
[1764548491337,2.8498597,2893.7,2890.8,0.273]
[1764548491338,2.517019,2893.5,2890.3,4.99565759]
[1764548491540,0.32882448,2892.2,2890.5,0.405504]
[1764548491737,0.74208597,2893.6,2890.5,0.405504]
[1764548491738,0.32882448,2892.6,2890.5,0.405504]
[1764548491909,0.32882448,2892.6,2890.6,0.4945]
[1764548492420,0.32882448,2892.6,2889.8,0.678504]
[1764548492421,0.32882448,2892.6,2890.0,4.50997]
[1764548492611,0.32882448,2892.6,2890.7,0.4945]
[1764548493010,0.28498597,2893.6,2891.8,3.429829]
[1764548493210,0.01457,2895.9,2893.1,1.13109811]
[1764548493444,0.01457,2895.9,2893.2,0.7675]
[1764548493445,7.37803227,2895.9,2893.2,0.7675]
[1764548493619,0.002,2894.2,2893.2,0.7675]
[1764548493822,0.002,2894.2,2893.5,0.72559411]
[1764548494126,0.01457,2895.9,2894.5,1.13109811]
[1764548494327,0.01457,2895.9,2894.8,1.13109811]
[1764548494516,0.4571,2898.0,2894.6,7.189226]
[1764548494517,0.4571,2898.0,2895.6,0.405504]
[1764548494721,0.4571,2899.1,2896.0,2.721683]
[1764548494922,0.32882448,2898.4,2896.7,0.72559411]
[1764548495122,0.32882448,2898.8,2896.8,0.273]
[1764548495319,0.32882448,2898.8,2896.9,0.678504]
[1764548495640,0.32882448,2898.8,2894.6,1.73223082]
[1764548495641,4.99565759,2898.6,2896.5,0.72559411]
[1764548495843,0.54527576,2898.5,2895.9,0.4945]
[1764548496044,0.54527576,2898.5,2895.3,0.273]
[1764548496045,0.32882448,2897.7,2895.3,0.273]
[1764548496212,4.99565759,2898.0,2895.1,7.40260829]
[1764548496213,0.72559411,2897.5,2895.1,7.40260829]
[1764548496548,0.32882448,2897.7,2895.3,2.230379]
[1764548496750,0.32882448,2897.7,2895.2,0.4945]
[1764548496936,0.4571,2897.6,2895.2,1.22009411]
[1764548497112,0.32882448,2898.1,2896.0,0.405504]
[1764548497553,0.273,2899.6,2896.0,0.405504]
[1764548497554,0.32882448,2898.9,2896.6,0.405504]
[1764548497756,0.32882448,2898.9,2896.7,0.7675]
[1764548497968,0.78592448,2898.9,2896.7,0.4945]
[1764548498269,0.78592448,2898.9,2896.5,0.1864]
[1764548498270,4.99565759,2898.1,2895.8,0.4945]
[1764548498428,0.32882448,2897.2,2894.9,0.273]
[1764548498614,1.13109811,2896.9,2894.1,0.1899]
[1764548498813,1.13109811,2896.9,2894.1,0.6844]
[1764548498814,0.72559411,2896.4,2894.1,0.6844]
[1764548499010,1.14771928,2896.3,2894.1,0.4945]
[1764548499210,0.32882448,2895.9,2894.1,3.94980562]
[1764548499543,0.32882448,2895.9,2894.1,0.4945]
[1764548500136,0.32882448,2896.3,2894.3,10.36520055]
[1764548500336,4.17713183,2897.3,2894.4,4.80453011]
[1764548500337,0.72559411,2897.3,2894.4,4.80453011]
[1764548500538,0.32882448,2897.4,2895.2,1.13109811]
[1764548500845,0.32882448,2897.4,2894.9,4.99565759]
[1764548500846,4.99565759,2898.2,2895.4,0.405504]
[1764548501343,0.4571,2898.1,2895.8,0.405504]
[1764548501543,0.4571,2898.1,2895.5,0.4945]
[1764548501747,0.72559411,2897.6,2894.8,0.4945]
[1764548501916,0.54527576,2898.0,2895.0,2.506415]
[1764548502115,0.54527576,2898.0,2894.9,0.4945]
[1764548502116,6.90202574,2897.7,2895.2,6.90798562]
[1764548502349,6.90202574,2897.7,2895.2,3.45399281]
[1764548502350,0.32882448,2897.2,2895.2,3.45399281]
[1764548502667,0.405504,2896.7,2894.7,3.72756812]
[1764548502978,1.13109811,2897.1,2892.7,3.45695878]
[1764548502979,1.13109811,2896.2,2893.6,0.4945]
[1764548503273,0.405504,2895.3,2893.0,3.45661942]
[1764548503421,0.32882448,2894.7,2892.9,7.40795663]
[1764548503627,0.4571,2896.0,2893.0,2.669193]
[1764548503926,3.631,2896.0,2893.6,3.936386]
[1764548504138,6.90607734,2896.0,2893.8,6.91132766]
[1764548504339,0.60182448,2896.1,2893.9,1.22009411]
[1764548504543,4.05477172,2896.1,2893.9,1.22009411]
[1764548504854,4.05477172,2896.1,2893.9,0.4945]
[1764548504855,1.58817128,2896.0,2893.9,0.4945]
[1764548505019,1.58817128,2896.0,2892.9,3.45673092]
[1764548505020,0.405504,2895.9,2893.2,0.4945]
[1764548505351,0.862604,2895.9,2893.2,0.4945]
[1764548505559,4.99565759,2895.4,2893.2,7.20725146]
[1764548505760,0.405504,2895.3,2893.2,0.2945]
[1764548505915,0.54011616,2895.2,2892.8,2.547729]
[1764548506116,0.4571,2895.3,2893.0,13.82647768]
[1764548506117,0.32882448,2895.0,2893.0,13.82647768]
[1764548506356,3.45329747,2895.8,2893.3,0.405504]
[1764548506663,3.45329747,2895.8,2893.0,17.2830971]
[1764548506664,0.72559411,2895.8,2893.1,0.72559411]
[1764548506951,0.72559411,2895.8,2893.0,17.2830971]
[1764548506952,0.4571,2895.8,2893.6,0.72559411]
[1764548507118,0.4571,2895.8,2893.6,0.272]
[1764548507317,0.73634171,2895.7,2893.6,0.99759411]
[1764548507523,0.40547717,2896.0,2893.9,3.022788]
[1764548507718,0.273,2896.1,2894.0,0.4945]
[1764548507936,0.273,2896.1,2894.1,0.272]
[1764548507937,3.72593024,2896.1,2894.1,0.272]
[1764548508145,3.72593024,2896.1,2894.3,0.72559411]
[1764548508369,0.862604,2896.0,2894.2,3.45518623]
[1764548508541,0.405504,2895.9,2894.1,3.45526893]
[1764548508735,0.862604,2895.9,2894.1,6.91057455]
[1764548508961,10.63179072,2896.1,2894.1,6.91057455]
[1764548508962,0.273,2896.1,2894.2,0.72559411]
[1764548509133,0.6378,2896.6,2894.2,1.22009411]
[1764548509329,5.8402291,2897.2,2894.2,1.22009411]
[1764548509330,0.32882448,2896.5,2894.3,0.900004]
[1764548509564,3.90870844,2897.2,2894.7,0.405504]
[1764548509771,0.32882448,2896.9,2894.9,0.32864066]
[1764548509928,0.32882448,2896.9,2894.5,0.32864066]
[1764548510128,0.32882448,2896.9,2895.1,1.13109811]
[1764548510469,0.271,2897.5,2895.1,1.13109811]
[1764548510470,0.4571,2897.1,2895.1,0.72559411]
[1764548510682,0.4571,2897.1,2895.0,10.36269429]
[1764548510961,0.4571,2897.1,2894.7,0.72559411]
[1764548510962,0.32882448,2896.5,2894.7,7.4036605]
[1764548511162,0.32882448,2896.5,2894.4,0.271]
[1764548511346,0.72559411,2896.6,2894.4,10.63584244]
[1764548511347,0.4571,2896.4,2894.4,10.63584244]
[1764548511530,0.4571,2896.4,2894.4,14.09078992]
[1764548511731,0.32882448,2896.5,2894.5,0.900004]
[1764548512019,0.32882448,2897.0,2895.1,0.405504]
[1764548512280,0.84457151,2898.8,2895.7,4.99565759]
[1764548512438,0.4571,2898.9,2896.6,0.405504]
[1764548512633,0.002,2897.6,2896.8,3.39527011]
[1764548512867,0.002,2897.6,2897.0,0.405504]
[1764548513137,0.002,2897.6,2897.0,0.73414466]
[1764548513330,0.32882448,2899.4,2897.1,0.4842]
[1764548513537,0.32882448,2899.4,2897.2,2.14535]
[1764548513763,0.32882448,2899.4,2897.1,0.4842]
[1764548513764,0.4894,2899.4,2897.3,0.72559411]
[1764548513967,0.81822448,2899.4,2896.8,4.324757]
[1764548514153,0.81822448,2899.4,2897.1,0.4842]
[1764548514361,3.4491084,2899.3,2897.2,10.35482532]
[1764548514663,0.37779329,2899.2,2897.2,6.90321688]
[1764548514860,0.86719329,2899.2,2897.2,3.45160844]
[1764548515162,4.99565759,2898.7,2896.9,6.90393178]
[1764548515467,0.86719329,2899.2,2897.2,0.32864066]
[1764548515646,0.86719329,2899.2,2897.0,1.20979411]
[1764548515647,0.4894,2899.1,2897.0,1.20979411]
[1764548515867,0.4894,2899.1,2897.1,0.4842]
[1764548516252,0.4894,2899.1,2896.6,3.45222293]
[1764548516253,0.32882448,2898.2,2896.2,3.93700022]
[1764548516554,0.81822448,2898.2,2896.2,6.90560044]
[1764548516746,0.81822448,2898.2,2896.2,10.35840066]
[1764548516947,0.32882448,2898.1,2896.2,10.35840066]
[1764548517205,0.32882448,2898.1,2896.2,3.45280022]
[1764548517206,5.48505759,2898.1,2896.2,3.45280022]
[1764548517381,5.48505759,2898.1,2895.1,4.99565759]
[1764548517382,0.32882448,2897.0,2895.1,6.90822424]
[1764548517683,0.32882448,2897.0,2895.2,0.4842]
[1764548517869,1.57016562,2897.8,2895.2,1.20979411]
[1764548517870,0.32882448,2897.4,2895.2,1.20979411]
[1764548518176,0.32882448,2897.4,2895.1,13.81644848]
[1764548518177,0.84457151,2897.0,2895.1,6.90822424]
[1764548518383,0.84457151,2896.7,2894.6,4.05434942]
[1764548518583,0.32882448,2896.3,2894.6,10.96376694]
[1764548518877,0.32882448,2896.2,2894.6,10.96376694]
[1764548519096,1.33397151,2896.6,2894.6,10.96376694]
[1764548519097,1.60397151,2896.5,2894.6,0.271]
[1764548519377,1.60397151,2896.5,2894.1,0.003]
[1764548519378,0.84457151,2896.2,2894.4,10.84904244]
[1764548519578,0.67318259,2896.1,2894.5,0.72559411]
[1764548519780,0.30027482,2896.4,2894.4,14.30398992]
[1764548519781,0.67318259,2896.2,2894.4,14.30398992]
[1764548519970,0.67318259,2896.3,2894.5,0.72559411]
[1764548520146,0.84457151,2896.0,2894.1,0.003]
[1764548520348,0.4894,2896.3,2894.1,0.003]
[1764548520349,1.5177541,2895.9,2894.5,4.89575]
[1764548520581,0.32882448,2896.3,2894.6,0.72559411]
[1764548520785,0.84457151,2896.0,2894.4,0.4842]
[1764548520983,2.29467373,2896.2,2894.1,0.003]
[1764548520984,0.32882448,2895.7,2894.1,0.003]
[1764548521186,1.68914302,2896.3,2894.5,3.264578]
[1764548521187,0.84457151,2896.3,2894.5,3.264578]
[1764548521493,0.84457151,2896.3,2894.4,0.7542]
[1764548521494,0.84457151,2896.8,2895.1,1.05423477]
[1764548521785,0.84457151,2897.1,2895.4,3.256852]
[1764548521992,0.84457151,2897.1,2894.9,5.87039611]
[1764548521993,0.84457151,2896.9,2894.9,5.87039611]
[1764548522188,0.84457151,2896.4,2894.9,2.139305]
[1764548522479,2.36985021,2896.8,2894.3,0.001]
[1764548522480,0.84457151,2895.8,2894.3,0.001]
[1764548522684,0.84457151,2895.2,2894.3,6.9111337]
[1764548522879,0.84457151,2895.8,2894.3,13.8212674]
[1764548523090,1.12609535,2895.9,2894.5,0.32864066]
[1764548523091,1.52648492,2895.7,2894.5,0.32864066]
[1764548523327,0.84457151,2896.0,2894.8,0.72559411]
[1764548523591,1.08155653,2896.7,2895.1,1.13109811]
[1764548523810,0.84457151,2897.1,2895.9,0.72559411]
[1764548524025,0.84457151,2897.1,2894.8,0.4842]
[1764548524026,0.84457151,2897.6,2896.0,0.7542]
[1764548524162,1.52801061,2897.5,2896.1,0.27]
[1764548524360,1.52801061,2897.5,2895.4,0.405504]
[1764548524361,0.84457151,2897.1,2895.2,0.6387]
[1764548524684,0.84457151,2896.7,2895.4,0.72559411]
[1764548524860,0.84457151,2896.7,2894.4,4.99565759]
[1764548524861,1.52801061,2896.6,2894.5,0.6387]
[1764548525059,1.12609535,2896.8,2894.3,6.9111337]
[1764548525060,0.84457151,2895.4,2894.3,6.9111337]
[1764548525296,0.72559411,2896.4,2894.3,6.9111337]
[1764548525297,1.52801061,2895.3,2894.3,0.001]
[1764548525592,0.84457151,2895.0,2894.3,3.4560013]
[1764548525792,0.6834391,2894.9,2894.3,3.4560013]
[1764548525996,0.6834391,2894.8,2894.4,0.4842]
[1764548526292,1.68914302,2896.7,2896.2,0.1545]
[1764548526501,0.58138821,2898.0,2896.3,0.72559411]
[1764548526710,0.68476768,2897.9,2896.3,1.85723335]
[1764548526864,1.68914302,2898.6,2896.5,0.405504]
[1764548527061,1.68914302,2898.6,2896.9,0.32864066]
[1764548527062,2.37411144,2898.5,2896.9,0.32864066]
[1764548527263,2.37411144,2898.4,2896.3,0.405504]
[1764548527506,2.37411144,2898.4,2896.5,0.32864066]
[1764548527507,0.68496842,2898.3,2896.5,0.32864066]
[1764548527662,0.68496842,2898.3,2896.4,0.4842]
[1764548527663,2.61152258,2898.2,2896.4,0.4842]
[1764548527863,1.68914302,2897.7,2895.8,4.647078]
[1764548528064,0.68496842,2897.6,2895.8,0.4842]
[1764548528368,1.68914302,2896.9,2895.4,0.27]
[1764548528589,10.35415459,2897.4,2895.5,3.6929]
[1764548528590,0.68496842,2896.8,2895.5,3.6929]
[1764548528800,3.23676363,2897.5,2895.4,10.63126223]
[1764548528801,0.68496842,2896.7,2895.4,10.63126223]
[1764548529014,2.17854302,2897.3,2895.4,10.63126223]
[1764548529015,0.68496842,2896.6,2895.4,11.11546223]
[1764548529304,2.48960184,2897.5,2895.6,0.405504]
[1764548529305,1.92655416,2897.5,2895.6,0.405504]
[1764548529459,0.68478257,2897.4,2896.0,0.72559411]
[1764548529661,0.68478257,2897.3,2896.0,0.72559411]
[1764548529880,1.92655416,2898.2,2896.6,0.72559411]
[1764548530165,0.6854317,2898.1,2896.6,0.72559411]
[1764548530366,1.68914302,2898.8,2896.9,0.72559411]
[1764548530590,1.68914302,2898.8,2896.8,17.26042525]
[1764548530591,2.37410613,2898.7,2896.8,6.9041701]
[1764548530803,2.37410613,2898.7,2896.0,5.40116159]
[1764548530804,1.68914302,2898.3,2896.0,0.4842]
[1764548531004,1.68914302,2898.3,2894.9,3.4542497]
[1764548531005,1.68914302,2897.1,2894.4,4.09364748]
[1764548531195,2.2521907,2896.9,2896.5,0.001]
[1764548531506,2.2521907,2896.9,2894.4,11.00354244]
[1764548531507,0.405504,2896.5,2894.4,3.45494748]
[1764548531683,1.71007063,2895.8,2894.1,0.003]
[1764548531883,2.28009417,2896.2,2894.1,0.003]
[1764548531884,1.71007063,2895.5,2894.3,3.45606685]
[1764548532107,1.71007063,2895.5,2894.3,6.9111337]
[1764548532108,0.68496311,2895.4,2894.3,6.9111337]
[1764548532436,0.68496311,2895.3,2894.4,0.4842]
[1764548532734,0.32882448,2897.1,2895.2,1.13109811]
[1764548532935,0.68394199,2897.0,2895.6,4.522874]
[1764548533077,3.45113378,2897.6,2895.5,0.72559411]
[1764548533384,1.71007063,2897.4,2895.6,2.2313]
[1764548533588,1.71007063,2897.2,2895.3,0.32864066]
[1764548533786,1.71007063,2897.0,2894.9,0.4842]
[1764548533973,2.39424085,2896.9,2894.9,0.4842]
[1764548534177,0.68417022,2896.8,2895.1,0.32864066]
[1764548534377,0.68417022,2896.7,2895.5,0.72559411]
[1764548534612,0.51612044,2897.5,2895.3,0.72559411]
[1764548534831,0.68437263,2897.4,2896.1,6.57483]
[1764548534983,1.71007063,2898.3,2896.4,0.32864066]
[1764548535175,0.68443748,2898.2,2896.8,1.05423477]
[1764548535423,0.68443748,2898.1,2896.5,0.27]
[1764548535596,0.68443748,2898.0,2896.5,0.27]
[1764548535796,1.71007063,2897.8,2896.1,0.1545]
[1764548536011,1.71007063,2897.5,2895.2,14.30017124]
[1764548536190,2.39450811,2897.4,2895.4,6.735673]
[1764548536387,2.39450811,2897.4,2895.3,0.4842]
[1764548536388,0.68443748,2897.3,2895.6,0.72559411]
[1764548536586,0.68443748,2897.2,2895.5,13.8145398]
[1764548536910,0.32882448,2896.8,2895.5,6.9072699]
[1764548537113,0.32882448,2896.8,2894.4,3.45486114]
[1764548537114,2.59839762,2896.7,2894.8,3.45447008]
[1764548537283,1.71007063,2896.4,2894.8,0.32864066]
[1764548537595,2.76949417,2896.8,2895.1,0.72559411]
[1764548537596,0.68443748,2896.3,2895.1,0.72559411]
[1764548537777,2.28009417,2897.1,2895.8,0.32864066]
[1764548537778,1.71007063,2897.1,2895.8,0.32864066]
[1764548537975,3.15436224,2897.0,2895.2,0.4842]
[1764548538200,0.68489161,2896.9,2895.3,4.994944]
[1764548538408,0.42115081,2897.9,2895.2,0.4842]
[1764548538409,1.71007063,2898.1,2896.3,2.03052]
[1764548538574,2.28209417,2898.5,2896.7,0.32864066]
[1764548538575,0.68521884,2898.0,2896.7,0.32864066]
[1764548538775,0.002,2898.5,2896.4,0.27]
[1764548538776,0.68521884,2897.9,2896.4,0.27]
[1764548539026,0.68521884,2897.8,2896.4,0.27]
[1764548539220,0.92474779,2897.7,2896.4,0.27]
[1764548539393,0.68521884,2897.6,2896.4,0.27]
[1764548539583,0.68521884,2897.5,2896.4,0.27]
[1764548539780,0.68521884,2897.4,2895.7,0.72559411]
[1764548539993,0.68521884,2897.3,2895.7,1.53843477]
[1764548540196,0.68521884,2897.2,2895.8,0.32864066]
[1764548540393,0.68521884,2897.1,2895.9,13.81263164]
[1764548540592,0.68521884,2897.0,2896.0,0.72559411]
[1764548540791,0.23952895,2897.2,2896.0,0.72559411]
[1764548540792,0.68521884,2896.9,2896.0,0.72559411]
[1764548541008,2.19947063,2897.6,2896.0,1.05423477]
[1764548541185,0.68472974,2897.5,2896.2,0.72559411]
[1764548541389,0.68472974,2897.4,2896.5,5.25189061]
[1764548541689,1.71207063,2898.5,2896.8,0.72559411]
[1764548541924,0.68549572,2898.4,2897.4,0.32864066]
[1764548542215,0.68549572,2898.3,2896.7,0.32864066]
[1764548542414,1.71007063,2898.1,2896.8,10.35625515]
[1764548542625,2.39556635,2898.0,2896.7,3.45219087]
[1764548542924,2.39556635,2898.0,2895.9,3.45308028]
[1764548542925,1.71007063,2897.6,2896.3,10.358043]
[1764548543082,0.68549572,2897.5,2896.3,13.810724]
[1764548543278,0.68549572,2897.4,2896.3,13.810724]
[1764548543502,2.75959417,2897.9,2896.4,1.21559411]
[1764548543503,0.68549572,2897.3,2896.4,1.21559411]
[1764548543703,1.71207063,2898.5,2896.8,6.362665]
[1764548543882,1.71207063,2898.5,2896.4,0.269]
[1764548543883,0.68587218,2898.4,2897.1,1.13109811]
[1764548544082,0.68587218,2898.3,2897.1,1.13109811]
[1764548544287,0.002,2898.5,2897.4,0.72559411]
[1764548544503,0.002,2898.5,2897.4,0.65915365]
[1764548544504,0.68571797,2898.4,2897.4,0.65915365]
[1764548544703,0.002,2898.5,2897.5,0.4936]
[1764548544903,0.68599259,2898.4,2897.5,0.4936]
[1764548545214,0.68600556,2898.3,2897.5,0.32864066]
[1764548545419,0.002,2898.5,2897.3,0.99459411]
[1764548545593,0.002,2898.5,2897.6,0.4936]
[1764548545799,0.002,2898.5,2897.6,0.32864066]
[1764548546003,0.68565927,2898.4,2897.6,0.32864066]
[1764548546199,0.002,2898.5,2897.6,0.32864066]
[1764548546401,0.002,2898.5,2897.8,1.05423477]
[1764548546704,0.002,2898.5,2896.6,3.45232341]
[1764548546705,0.68539544,2898.4,2896.6,3.45232341]
[1764548547043,2.03889511,2897.8,2896.1,6.90583888]
[1764548547324,0.68539544,2897.7,2896.5,0.32864066]
[1764548547524,2.46791724,2898.3,2896.9,0.32864066]
[1764548547525,0.75784661,2898.3,2896.9,0.32864066]
[1764548547818,0.75784661,2898.3,2896.2,4.6143925]
[1764548547819,0.68525744,2898.2,2896.6,0.72559411]
[1764548548019,0.471,2898.3,2896.7,0.32864066]
[1764548548020,0.68525744,2898.1,2896.7,0.32864066]
[1764548548219,0.471,2898.3,2896.4,2.406912]
[1764548548420,0.68725744,2898.5,2896.4,2.406912]
[1764548548421,0.002,2898.5,2897.3,0.32864066]
[1764548548608,0.002,2898.5,2896.7,8.4929515]
[1764548548609,0.002,2898.5,2897.5,0.32864066]
[1764548548787,0.002,2898.5,2897.0,0.268]
[1764548548788,0.002,2898.5,2897.2,0.32864066]
[1764548548991,0.473,2898.5,2897.0,0.268]
[1764548549191,7.37331112,2898.5,2896.6,1.05423477]
[1764548549392,7.37331112,2898.5,2896.5,13.8097704]
[1764548549393,0.32882448,2898.0,2896.5,10.3573278]
[1764548549596,0.32882448,2898.3,2896.5,13.8097704]
[1764548549826,1.48508192,2898.3,2896.6,0.72559411]
[1764548550124,1.48508192,2898.3,2896.5,6.9048852]
[1764548550125,0.68525744,2898.2,2896.5,6.9048852]
[1764548550324,3.45053655,2898.1,2896.5,10.3583278]
[1764548550626,0.4606794,2898.0,2896.6,0.72559411]
[1764548550826,0.32882448,2898.3,2896.6,0.72559411]
[1764548551123,0.32882448,2898.3,2896.5,6.9058852]
[1764548551322,0.471,2898.2,2896.5,3.4534426]
[1764548551528,0.32882448,2897.8,2896.5,10.3583278]
[1764548551696,1.01421333,2898.1,2896.5,13.8107704]
[1764548552132,0.471,2898.2,2896.6,0.72559411]
[1764548552335,0.33082448,2898.5,2896.9,0.72559411]
[1764548552497,0.33082448,2898.5,2896.8,17.26042525]
[1764548552498,0.002,2898.5,2897.3,2.79962]
[1764548552694,0.002,2898.5,2897.4,0.267]
[1764548553012,0.002,2898.5,2897.4,0.59564066]
[1764548553433,0.002,2898.5,2896.9,0.72559411]
[1764548553748,0.002,2898.5,2896.8,13.8083402]
[1764548553749,0.86330329,2898.4,2896.8,13.8083402]
[1764548553947,0.002,2898.5,2897.2,0.32864066]
[1764548554112,0.002,2898.5,2897.0,0.32864066]
[1764548554313,0.6683,2898.4,2897.0,13.80738692]
[1764548554747,0.6683,2898.4,2897.0,10.35554019]
[1764548555049,0.6683,2898.4,2896.6,13.80929364]
[1764548555050,0.471,2898.3,2896.6,13.80929364]
[1764548555343,0.471,2898.3,2896.6,10.35697023]
[1764548555550,0.471,2898.3,2896.6,10.68561089]
[1764548555551,0.75686818,2898.2,2896.6,10.68561089]
[1764548555735,0.32882448,2897.7,2896.6,6.90464682]
[1764548555920,0.471,2898.1,2896.5,13.81075798]